bitfinex/quotes_SOLUSD_20250609
["timestamp","ask_amount","ask_price","bid_price","bid_amount"]
[1749479548407,8.33333333,154.55,154.54,65.89731419]
[1749479548615,8.33333333,154.55,154.54,110.54696305]
[1749479548827,25.24029525,154.66,154.54,110.54696305]
[1749479548828,4.82168181,154.65,154.59,6.9513]
[1749479549074,256.75547688,154.75,154.59,6.9513]
[1749479549075,6.04418972,154.77,154.64,15.09731419]
[1749479549193,6.04418972,154.79,154.68,15.38163733]
[1749479549399,6.45956604,154.81,154.69,26.0]
[1749479549598,5.11691315,154.83,154.75,15.09731419]
[1749479549599,6.45904522,154.83,154.75,15.09731419]
[1749479549832,28.6243,154.86,154.74,40.44]
[1749479549833,26.0,154.8,154.74,40.44]
[1749479549993,26.0,154.8,154.75,15.09731419]
[1749479550334,6.45839687,154.84,154.75,15.09731419]
[1749479550538,15.09731419,154.83,154.75,15.09731419]
[1749479550707,6.45968346,154.81,154.74,40.44]
[1749479550906,26.0,154.75,154.66,37.3]
[1749479551126,15.09731419,154.75,154.67,51.08]
[1749479551311,15.09731419,154.75,154.7,24.52631056]
[1749479551312,0.28432314,154.74,154.7,24.52631056]
[1749479552017,0.28432314,154.74,154.71,24.52631056]
[1749479552329,0.28432314,154.74,154.67,51.08]
[1749479552633,0.28432314,154.74,154.7,24.52631056]
[1749479552807,0.28432314,154.74,154.71,24.52631056]
[1749479553011,6.74682008,154.74,154.67,51.08]
[1749479553212,6.74682008,154.74,154.69,24.52631056]
[1749479553433,50.52631056,154.73,154.67,10.6]
[1749479553637,24.8106337,154.72,154.62,29.24964886]
[1749479553842,26.0,154.73,154.62,10.6]
[1749479553843,50.8106337,154.7,154.62,10.6]
[1749479554009,0.14216157,154.69,154.65,24.52631056]
[1749479554215,0.28432314,154.69,154.65,24.52631056]
[1749479554413,26.0,154.66,154.53,7.0724]
[1749479554619,24.52631056,154.63,154.58,24.52631056]
[1749479554939,69.17595942,154.65,154.6,24.52631056]
[1749479555145,26.0,154.65,154.63,24.52631056]
[1749479555330,32.46625692,154.65,154.63,24.52631056]
[1749479555511,26.0,154.65,154.63,24.52631056]
[1749479555712,26.0,154.65,154.64,24.52631056]
[1749479556142,32.60842377,154.65,154.57,51.2]
[1749479556309,56.99257276,154.65,154.6,24.52631056]
[1749479556510,26.0,154.65,154.61,24.52631056]
[1749479556719,26.0,154.65,154.64,24.52631056]
[1749479556933,26.0,154.65,154.63,24.52631056]
[1749479557257,26.0,154.65,154.62,24.52631056]
[1749479558112,26.0,154.65,154.63,24.52631056]
[1749479558315,26.0,154.65,154.64,24.52631056]
[1749479558820,0.14216157,154.67,154.64,24.52631056]
[1749479559514,0.14216157,154.67,154.6,6.46828629]
[1749479559515,26.0,154.68,154.66,24.52631056]
[1749479560133,0.14216157,154.69,154.66,24.52631056]
[1749479560345,0.28432314,154.69,154.66,24.52631056]
[1749479561964,6.74893301,154.69,154.65,24.52631056]
[1749479562257,31.27524357,154.69,154.62,10.6]
[1749479562541,31.27524357,154.69,154.65,24.52631056]
[1749479562718,31.27524357,154.69,154.62,10.6]
[1749479562719,24.52631056,154.67,154.62,10.6]
[1749479562915,0.28432314,154.66,154.62,10.6]
[1749479563118,24.8106337,154.66,154.61,24.52631056]
[1749479563319,0.14216157,154.64,154.6,24.52631056]
[1749479563737,0.14216157,154.64,154.61,24.52631056]
[1749479564314,0.14216157,154.64,154.62,24.52631056]
[1749479564741,6.46490922,154.69,154.63,24.52631056]
[1749479564942,6.46490922,154.69,154.58,17.06900741]
[1749479564943,0.14216157,154.66,154.58,17.06900741]
[1749479565148,0.14216157,154.66,154.63,24.52631056]
[1749479566551,0.14216157,154.66,154.58,17.06900741]
[1749479566719,0.14216157,154.66,154.63,24.52631056]
[1749479567524,0.14216157,154.67,154.65,24.52631056]
[1749479567749,26.14216157,154.67,154.66,24.52631056]
[1749479567947,26.14216157,154.67,154.58,10.6]
[1749479568254,0.14216157,154.65,154.61,24.52631056]
[1749479568551,24.52631056,154.63,154.59,24.52631056]
[1749479568750,24.66847213,154.65,154.58,51.16]
[1749479569057,24.66847213,154.65,154.61,24.52631056]
[1749479569631,31.13470968,154.65,154.6,24.52631056]
[1749479569958,24.52631056,154.63,154.58,35.12631056]
[1749479570142,24.52631056,154.63,154.58,24.52631056]
[1749479570851,24.52631056,154.62,154.58,24.52631056]
[1749479571049,24.52631056,154.62,154.57,35.34631056]
[1749479571231,24.52631056,154.61,154.57,35.34631056]
[1749479571427,0.28432314,154.64,154.57,35.34631056]
[1749479571744,0.14216157,154.62,154.59,24.52631056]
[1749479571929,0.14216157,154.62,154.58,24.52631056]
[1749479572449,31.13594445,154.62,154.57,10.82]
[1749479572650,31.13594445,154.62,154.58,24.52631056]
[1749479573246,0.14216157,154.62,154.59,24.52631056]
[1749479573449,0.14216157,154.63,154.6,24.52631056]
[1749479574947,6.60921821,154.63,154.6,24.52631056]
[1749479575146,6.60921821,154.63,154.59,24.52631056]
[1749479575537,6.60921821,154.63,154.6,24.52631056]
[1749479576048,0.14216157,154.63,154.6,24.52631056]
[1749479576959,6.46712761,154.63,154.6,24.52631056]
[1749479577848,6.46712761,154.63,154.59,24.52631056]
[1749479578338,0.14216157,154.63,154.59,24.52631056]
[1749479578537,6.46669057,154.64,154.6,24.52631056]
[1749479579148,30.99300113,154.64,154.6,24.52631056]
[1749479579345,1.6847,154.65,154.6,24.52631056]
[1749479579551,26.0,154.64,154.62,24.52631056]
[1749479579733,24.52631056,154.68,154.62,24.52631056]
[1749479579934,24.52631056,154.67,154.62,24.52631056]
[1749479580134,24.52631056,154.66,154.61,24.52631056]
[1749479580442,56.99237888,154.66,154.61,24.52631056]
[1749479580642,56.99237888,154.66,154.62,24.52631056]
[1749479581664,56.99237888,154.66,154.61,24.52631056]
[1749479581963,56.99237888,154.66,154.62,24.52631056]
[1749479582935,32.46606832,154.66,154.62,24.52631056]
[1749479583259,26.0,154.68,154.65,24.52631056]
[1749479583465,26.29231056,154.7,154.61,40.5]
[1749479583466,26.29231056,154.7,154.66,24.52631056]
[1749479583640,6.46454198,154.69,154.66,24.52631056]
[1749479583839,8.23020059,154.7,154.67,24.52631056]
[1749479584140,6.46420059,154.7,154.67,24.52631056]
[1749479584443,6.46328852,154.72,154.69,24.52631056]
[1749479584843,6.46292971,154.73,154.71,24.52631056]
[1749479585037,6.46292971,154.73,154.7,24.52631056]
[1749479586334,6.46292971,154.73,154.66,40.56]
[1749479586538,30.98924027,154.73,154.68,24.52631056]
[1749479588576,24.52631056,154.7,154.63,43.28699274]
[1749479588777,18.933972,154.72,154.63,43.28699274]
[1749479588778,0.28432314,154.72,154.68,24.52631056]
[1749479588947,0.14216157,154.72,154.69,24.52631056]
[1749479589149,24.52631056,154.71,154.67,24.52631056]
[1749479589347,24.52631056,154.7,154.66,24.52631056]
[1749479589557,24.8106337,154.71,154.66,24.52631056]
[1749479589964,24.8106337,154.71,154.67,24.52631056]
[1749479590255,24.52631056,154.69,154.64,24.52631056]
[1749479590471,24.52631056,154.69,154.63,10.82]
[1749479590472,30.99104522,154.69,154.65,24.52631056]
[1749479590645,6.46473466,154.69,154.65,24.52631056]
[1749479590955,30.99104522,154.69,154.64,24.52631056]
[1749479591151,24.66847213,154.68,154.63,35.34631056]
[1749479591355,24.66847213,154.68,154.63,10.82]
[1749479591685,24.66847213,154.68,154.63,35.34631056]
[1749479592148,24.52631056,154.67,154.63,10.82]
[1749479592349,24.8106337,154.68,154.63,35.34631056]
[1749479592564,6.4653779,154.67,154.63,35.34631056]
[1749479592769,30.99168846,154.67,154.63,35.34631056]
[1749479593152,30.99168846,154.67,154.63,10.82]
[1749479593366,30.99168846,154.67,154.6,6.46817339]
[1749479593566,30.99168846,154.67,154.62,24.52631056]
[1749479593957,24.66847213,154.66,154.61,24.52631056]
[1749479594675,6.46621403,154.65,154.59,83.92863596]
[1749479594969,0.14216157,154.64,154.6,24.52631056]
[1749479595192,0.14216157,154.65,154.62,24.52631056]
[1749479595547,0.14216157,154.65,154.59,17.28865158]
[1749479595772,0.14216157,154.65,154.62,24.52631056]
[1749479596082,6.46592595,154.66,154.63,24.52631056]
[1749479596375,6.46592595,154.66,154.62,24.52631056]
[1749479596557,0.14216157,154.65,154.62,24.52631056]
[1749479596753,24.66847213,154.65,154.6,24.52631056]
[1749479596961,0.14216157,154.65,154.61,24.52631056]
[1749479597157,6.18635129,154.68,154.63,24.52631056]
[1749479597366,26.0,154.69,154.6,18.64964886]
[1749479597567,26.0,154.69,154.66,24.52631056]
[1749479598176,32.46462461,154.69,154.66,24.52631056]
[1749479598352,32.46462461,154.69,154.65,24.52631056]
[1749479598554,56.99093517,154.69,154.65,24.52631056]
[1749479598948,56.99093517,154.69,154.66,24.52631056]
[1749479598949,26.0,154.69,154.66,24.52631056]
[1749479599279,24.52631056,154.72,154.68,24.52631056]
[1749479599474,32.49525008,154.74,154.7,24.52631056]
[1749479599770,24.52631056,154.72,154.67,24.52631056]
[1749479599965,24.52631056,154.71,154.66,76.02631056]
[1749479600364,30.99042118,154.71,154.66,82.4920776]
[1749479600558,30.99042118,154.71,154.66,76.02631056]
[1749479600766,24.52631056,154.7,154.66,51.5]
[1749479601165,6.46411062,154.71,154.66,51.5]
[1749479601372,6.46411062,154.71,154.66,82.49195555]
[1749479601567,6.46411062,154.71,154.66,76.02631056]
[1749479601977,6.46411062,154.71,154.67,24.52631056]
[1749479602276,30.98967378,154.72,154.68,24.52631056]
[1749479602478,6.46336322,154.72,154.68,24.52631056]
[1749479602877,24.52631056,154.7,154.66,76.02631056]
[1749479603078,24.52631056,154.7,154.66,51.5]
[1749479603386,12.49475705,154.72,154.66,51.5]
[1749479603387,24.52631056,154.69,154.66,51.5]
[1749479603559,24.52631056,154.69,154.64,24.52631056]
[1749479603958,24.52631056,154.68,154.64,24.52631056]
[1749479604290,18.933972,154.71,154.62,36.86]
[1749479604291,24.52631056,154.66,154.62,10.86]
[1749479604456,24.52631056,154.66,154.62,82.51376927]
[1749479604650,30.99187338,154.67,154.62,82.51376927]
[1749479605178,30.99187338,154.67,154.63,24.52631056]
[1749479605880,30.99187338,154.67,154.62,35.38631056]
[1749479606077,30.99187338,154.67,154.62,10.86]
[1749479606078,24.66847213,154.66,154.62,10.86]
[1749479606678,24.66847213,154.66,154.62,35.38631056]
[1749479606979,24.66847213,154.66,154.62,10.86]
[1749479607168,24.66847213,154.66,154.62,35.38631056]
[1749479607571,24.66847213,154.66,154.62,10.86]
[1749479607780,24.52631056,154.64,154.62,10.86]
[1749479607969,30.99350736,154.63,154.59,40.66]
[1749479608173,6.4671968,154.63,154.59,65.18631056]
[1749479608687,6.4671968,154.63,154.6,24.52631056]
[1749479609191,6.4671968,154.63,154.59,40.66]
[1749479609391,24.52631056,154.61,154.58,10.86]
[1749479609687,24.52631056,154.61,154.56,40.68]
[1749479609861,0.28432314,154.62,154.56,65.20631056]
[1749479610290,0.28432314,154.62,154.56,24.52631056]
[1749479610484,18.933972,154.62,154.56,24.52631056]
[1749479610661,20.630072,154.62,154.55,65.18631056]
[1749479610861,20.630072,154.62,154.55,24.52631056]
[1749479611061,20.630072,154.62,154.54,88.78]
[1749479611355,0.14216157,154.6,154.54,113.30631056]
[1749479611555,24.52631056,154.57,154.54,10.86]
[1749479611975,24.52631056,154.57,154.53,40.66]
[1749479612170,24.52631056,154.54,154.5,24.52631056]
[1749479612381,24.52631056,154.55,154.51,24.52631056]
[1749479612776,24.52631056,154.55,154.5,24.52631056]
[1749479612978,24.52631056,154.55,154.49,54.35944894]
[1749479613187,44.64964886,154.59,154.52,24.52631056]
[1749479613188,6.46914219,154.58,154.52,24.52631056]
[1749479613498,30.99545275,154.58,154.54,24.52631056]
[1749479613992,30.99545275,154.58,154.53,40.68]
[1749479614162,24.66847213,154.57,154.53,40.68]
[1749479614892,24.52631056,154.55,154.53,40.68]
[1749479615186,30.99675569,154.55,154.5,71.65878625]
[1749479615396,30.99675569,154.55,154.5,40.66]
[1749479615593,30.99641801,154.56,154.52,24.52631056]
[1749479616492,26.0,154.59,154.53,24.52631056]
[1749479616667,6.46847133,154.6,154.55,24.52631056]
[1749479616867,6.46847133,154.6,154.5,47.1324631]
[1749479616868,24.52631056,154.59,154.54,65.20631056]
[1749479617170,30.99506153,154.59,154.55,24.52631056]
[1749479617585,30.99506153,154.59,154.54,47.15061453]
[1749479617890,30.99506153,154.59,154.55,24.52631056]
[1749479618275,30.99506153,154.59,154.54,71.67692509]
[1749479618671,30.99468558,154.6,154.55,6.47036426]
[1749479618994,30.99468558,154.6,154.56,24.52631056]
[1749479619382,30.9943277,154.61,154.56,24.52631056]
[1749479619588,30.9943277,154.61,154.55,6.47036426]
[1749479619790,30.9943277,154.61,154.56,24.52631056]
[1749479620184,24.52631056,154.61,154.55,6.47029111]
[1749479620496,26.0,154.62,154.58,24.52631056]
[1749479620689,56.99378984,154.62,154.57,24.52631056]
[1749479620889,56.99378984,154.62,154.54,67.71682132]
[1749479621074,56.99378984,154.62,154.57,24.52631056]
[1749479621275,24.52631056,154.61,154.55,6.47039792]
[1749479621476,24.52631056,154.61,154.57,24.52631056]
[1749479621683,24.52631056,154.61,154.54,58.01065235]
[1749479621684,24.52631056,154.6,154.54,58.01065235]
[1749479621891,24.52631056,154.6,154.55,24.52631056]
[1749479622281,24.52631056,154.6,154.54,58.01065235]
[1749479622486,0.14216157,154.59,154.54,10.86]
[1749479622686,30.99569744,154.58,154.54,35.38631056]
[1749479622880,6.46938688,154.58,154.54,10.86]
[1749479623094,30.99569744,154.58,154.54,35.38631056]
[1749479623679,30.99569744,154.58,154.53,134.79119627]
[1749479623993,30.99569744,154.58,154.54,24.52631056]
[1749479624297,30.99569744,154.58,154.53,134.79119627]
[1749479624298,30.99569744,154.58,154.53,47.09119627]
[1749479624490,30.99569744,154.58,154.54,24.52631056]
[1749479624874,24.52631056,154.56,154.51,40.6]
[1749479625096,24.52631056,154.56,154.51,65.12631056]
[1749479625301,24.52631056,154.56,154.5,17.33209119]
[1749479625476,24.52631056,154.56,154.51,24.52631056]
[1749479625901,30.99653953,154.56,154.51,24.52631056]
[1749479628400,30.99696371,154.55,154.51,24.52631056]
[1749479628602,1.8074,154.59,154.54,24.52631056]
[1749479628804,24.52631056,154.61,154.56,24.52631056]
[1749479629106,24.52631056,154.6,154.56,24.52631056]
[1749479629300,24.52631056,154.59,154.54,65.12631056]
[1749479629499,24.52631056,154.58,154.54,40.6]
[1749479629880,30.99556114,154.58,154.54,65.12631056]
[1749479630092,30.99556114,154.58,154.54,40.6]
[1749479630296,30.99556114,154.58,154.54,65.12631056]
[1749479630892,30.99556114,154.58,154.54,40.6]
[1749479631685,6.46925058,154.58,154.54,40.6]
[1749479631891,30.99556114,154.58,154.54,40.6]
[1749479632090,24.52631056,154.55,154.51,24.52631056]
[1749479632292,24.52631056,154.55,154.51,40.58]
[1749479632494,30.99556114,154.58,154.53,24.52631056]
[1749479632683,26.0,154.58,154.55,24.52631056]
[1749479632883,30.99522273,154.59,154.55,24.52631056]
[1749479632884,6.46891217,154.59,154.55,24.52631056]
[1749479633103,30.99522273,154.59,154.55,24.52631056]
[1749479633487,30.99522273,154.59,154.54,24.52631056]
[1749479634008,6.46891217,154.59,154.54,24.52631056]
[1749479634181,6.46847842,154.6,154.56,24.52631056]
[1749479634383,30.99436159,154.61,154.56,24.52631056]
[1749479635202,6.46805103,154.61,154.56,15.06939848]
[1749479635393,21.53744951,154.61,154.56,15.06939848]
[1749479635795,6.46805103,154.61,154.56,15.06939848]
[1749479635999,21.53744951,154.61,154.56,21.53929725]
[1749479636591,21.53744951,154.61,154.56,15.06939848]
[1749479636910,15.06939848,154.6,154.55,55.62939848]
[1749479637509,21.53744951,154.61,154.56,15.06939848]
[1749479637903,32.46762457,154.62,154.58,15.06939848]
[1749479638112,6.46762457,154.62,154.59,15.06939848]
[1749479638297,21.53654939,154.63,154.59,15.06939848]
[1749479638491,21.53654939,154.63,154.58,15.06939848]
[1749479639391,15.06939848,154.62,154.58,15.06939848]
[1749479639592,15.06939848,154.62,154.56,17.30960806]
[1749479639897,15.06939848,154.62,154.58,15.06939848]
[1749479640717,21.53720557,154.62,154.58,15.06939848]
[1749479641429,15.06939848,154.59,154.54,15.06939848]
[1749479641604,15.06939848,154.57,154.53,15.06939848]
[1749479641929,15.06939848,154.56,154.52,25.90939848]
[1749479642103,15.06939848,154.55,154.52,10.84]
[1749479642413,15.06939848,154.53,154.49,15.06939848]
[1749479642905,15.06939848,154.54,154.49,15.06939848]
[1749479643322,24.58447903,154.52,154.48,10.84]
[1749479643503,24.58447903,154.53,154.48,35.42447903]
[1749479643705,24.58447903,154.52,154.48,10.84]
[1749479643916,24.58447903,154.51,154.48,10.84]
[1749479644098,24.58447903,154.5,154.48,10.84]
[1749479644297,24.58447903,154.5,154.46,24.58447903]
[1749479644897,31.05709113,154.5,154.46,24.58447903]
[1749479645218,24.58447903,154.49,154.44,54.5749337]
[1749479645393,6.4726121,154.5,154.44,72.68447903]
[1749479645394,24.58447903,154.48,154.44,72.68447903]
[1749479646205,24.58447903,154.48,154.44,54.57492667]
[1749479646505,24.58447903,154.5,154.46,24.58447903]
[1749479646713,31.05627511,154.52,154.47,24.58447903]
[1749479646910,31.05627511,154.52,154.48,24.58447903]
[1749479647419,1.7507,154.53,154.48,24.58447903]
[1749479647710,1.7507,154.53,154.46,6.47385007]
[1749479647711,26.0,154.54,154.5,24.58447903]
[1749479647910,26.0,154.54,154.47,40.5]
[1749479647911,31.05498007,154.55,154.51,24.58447903]
[1749479648326,24.58447903,154.55,154.51,24.58447903]
[1749479648910,24.58447903,154.54,154.5,24.58447903]
[1749479649516,24.58447903,154.54,154.48,6.47321614]
[1749479649517,24.58447903,154.54,154.49,24.58447903]
[1749479650219,24.58447903,154.54,154.5,24.58447903]
[1749479650815,31.05535213,154.54,154.5,24.58447903]
[1749479651000,6.46997929,154.56,154.48,6.47317615]
[1749479651207,24.7266406,154.55,154.48,6.47317615]
[1749479652214,26.0,154.58,154.54,24.58447903]
[1749479652430,6.46880887,154.59,154.55,24.58447903]
[1749479652724,31.0532879,154.59,154.55,24.58447903]
[1749479653092,24.58447903,154.6,154.55,31.05471974]
[1749479653510,31.05286114,154.6,154.55,31.05471974]
[1749479653798,31.05286114,154.6,154.56,24.58447903]
[1749479654156,24.58447903,154.6,154.56,24.58447903]
[1749479654308,24.58447903,154.6,154.55,31.05471974]
[1749479655716,31.05293594,154.6,154.55,31.05471974]
[1749479655908,26.31957903,154.61,154.56,24.58447903]
[1749479656213,32.78760772,154.61,154.56,24.58447903]
[1749479656424,24.58447903,154.6,154.56,24.58447903]
[1749479657603,6.46802869,154.61,154.57,24.58447903]
[1749479658009,31.05250772,154.61,154.57,24.58447903]
[1749479660331,24.58447903,154.6,154.56,24.58447903]
[1749479661031,31.05250772,154.61,154.56,24.58447903]
[1749479661518,31.05250772,154.61,154.56,31.05444812]
[1749479661907,31.05250772,154.61,154.56,24.58447903]
[1749479662728,31.05250772,154.61,154.56,31.05443577]
[1749479662932,31.05250772,154.61,154.56,24.58447903]
[1749479663834,31.05250772,154.61,154.56,31.05436722]
[1749479664132,26.14216157,154.63,154.56,6.46988819]
[1749479664327,6.46696209,154.64,154.59,24.58447903]
[1749479664505,31.05144112,154.64,154.6,24.58447903]
[1749479664703,0.14216157,154.63,154.59,24.58447903]
[1749479664929,6.46696209,154.64,154.59,24.58447903]
[1749479665104,38.77816366,154.65,154.61,24.58447903]
[1749479665306,32.74335279,154.65,154.6,24.58447903]
[1749479665532,24.58447903,154.63,154.58,31.05362122]
[1749479665936,24.7266406,154.64,154.59,24.58447903]
[1749479666937,31.19337834,154.64,154.59,31.05303741]
[1749479667532,6.60889931,154.64,154.6,24.58447903]
[1749479667835,31.19337834,154.64,154.6,24.58447903]
[1749479668320,31.19337834,154.64,154.59,24.58447903]
[1749479668515,0.14216157,154.64,154.58,6.46898594]
[1749479668738,32.17697244,154.66,154.59,5.5]
[1749479668739,32.46597831,154.66,154.59,5.5]
[1749479669036,32.46597831,154.66,154.62,24.58447903]
[1749479669238,6.46597831,154.66,154.62,15.05739336]
[1749479669450,21.52337167,154.66,154.61,15.05739336]
[1749479670342,15.05739336,154.65,154.61,15.05739336]
[1749479671474,7.86601087,154.69,154.6,26.0]
[1749479671756,7.86601087,154.69,154.58,41.29133942]
[1749479671757,23.35316614,154.69,154.65,15.05739336]
[1749479671937,23.35316614,154.69,154.64,15.05739336]
[1749479672241,15.05739336,154.67,154.62,15.05739336]
[1749479672413,15.05739336,154.67,154.63,15.05739336]
[1749479672614,15.19955493,154.68,154.64,21.52394392]
[1749479672832,6.60642163,154.7,154.66,15.05739336]
[1749479673044,15.05739336,154.72,154.67,15.05739336]
[1749479673412,15.05739336,154.71,154.67,15.05739336]
[1749479673837,23.37695635,154.73,154.68,15.05739336]
[1749479674038,8.31956299,154.73,154.68,15.05739336]
[1749479674240,8.31956299,154.73,154.69,15.05739336]
[1749479674241,23.37695635,154.73,154.69,15.05739336]
[1749479674536,1.8566,154.73,154.69,15.05739336]
[1749479674736,21.51995582,154.74,154.7,15.05739336]
[1749479674935,6.46256246,154.74,154.7,15.05739336]
[1749479675146,2.73291378,154.76,154.71,15.05739336]
[1749479675345,2.73291378,154.76,154.68,17.20488653]
[1749479675346,17.79030714,154.76,154.68,17.20488653]
[1749479675551,15.05739336,154.74,154.68,17.20488653]
[1749479675749,15.05739336,154.73,154.69,15.05739336]
[1749479675915,15.05739336,154.75,154.7,15.05739336]
[1749479676116,26.0,154.75,154.71,15.05739336]
[1749479676424,24.25197535,154.76,154.72,15.05739336]
[1749479677040,24.25197535,154.76,154.71,15.05739336]
[1749479677220,15.05739336,154.73,154.69,15.05739336]
[1749479677421,15.05739336,154.72,154.68,25.79739336]
[1749479677621,15.05739336,154.73,154.68,25.79739336]
[1749479677916,15.19955493,154.74,154.69,15.05739336]
[1749479678316,15.19955493,154.74,154.68,17.20495945]
[1749479678317,15.05739336,154.72,154.68,10.74]
[1749479678662,15.05739336,154.73,154.68,25.79739336]
[1749479678940,6.60499869,154.74,154.69,15.05739336]
[1749479679148,15.05739336,154.73,154.69,15.05739336]
[1749479679444,13.99641058,154.76,154.68,17.20493176]
[1749479679655,15.05739336,154.75,154.71,15.05739336]
[1749479680042,24.25216902,154.76,154.72,15.05739336]
[1749479680230,9.19477566,154.76,154.72,15.05739336]
[1749479680415,24.25216902,154.76,154.72,15.05739336]
[1749479680621,24.25216902,154.76,154.71,15.05739336]
[1749479680821,15.05739336,154.75,154.71,15.05739336]
[1749479681052,15.05739336,154.75,154.7,15.05739336]
[1749479681359,9.19477566,154.76,154.69,15.05739336]
[1749479681655,15.05739336,154.73,154.68,25.79739336]
[1749479681825,0.14216157,154.75,154.7,15.05739336]
[1749479682033,15.05739336,154.74,154.69,15.05739336]
[1749479682239,15.05739336,154.74,154.7,15.05739336]
[1749479682440,0.14216157,154.75,154.7,15.05739336]
[1749479682647,21.66161463,154.75,154.7,15.05739336]
[1749479682957,47.66161463,154.75,154.7,15.05739336]
[1749479683347,15.05739336,154.74,154.69,15.05739336]
[1749479683857,15.05739336,154.74,154.69,21.52158947]
[1749479684189,15.05739336,154.74,154.7,15.05739336]
[1749479684523,15.05739336,154.74,154.7,21.52136577]
[1749479684751,15.05739336,154.74,154.69,21.52182523]
[1749479685253,15.05739336,154.74,154.7,15.05739336]
[1749479685850,15.05739336,154.72,154.68,10.74]
[1749479686152,15.05739336,154.71,154.68,10.74]
[1749479686524,15.05739336,154.71,154.68,17.20492823]
[1749479686751,15.05739336,154.71,154.68,10.74]
[1749479687533,15.05739336,154.73,154.68,32.26220061]
[1749479687731,0.14216157,154.75,154.71,15.05739336]
[1749479687954,15.19955493,154.75,154.71,15.05739336]
[1749479688547,24.2522454,154.76,154.71,21.521049]
[1749479689167,24.2522454,154.76,154.71,15.05739336]
[1749479689952,9.19485204,154.76,154.71,15.05739336]
[1749479690158,9.19485204,154.76,154.7,6.46400008]
[1749479690333,24.2522454,154.76,154.71,15.05739336]
[1749479690532,24.2522454,154.76,154.71,20.55739336]
[1749479691149,24.2522454,154.76,154.71,5.5]
[1749479691350,24.2522454,154.76,154.71,20.55739336]
[1749479691568,24.2522454,154.76,154.71,27.02109699]
[1749479692765,15.05739336,154.75,154.71,27.02109699]
[1749479693141,15.05739336,154.75,154.71,21.52109699]
[1749479694363,15.05739336,154.75,154.71,6.46370363]
[1749479696135,9.19485204,154.76,154.71,6.46370363]
[1749479696337,15.05739336,154.75,154.71,6.46370363]
[1749479696560,15.05739336,154.75,154.71,15.05739336]
[1749479696864,15.05739336,154.75,154.7,15.05739336]
[1749479697238,9.19485204,154.76,154.7,15.05739336]
[1749479697433,15.05739336,154.74,154.7,15.05739336]
[1749479697842,15.05739336,154.73,154.69,6.46454198]
[1749479698063,9.19485204,154.76,154.68,17.20480077]
[1749479698064,15.05739336,154.71,154.68,17.20480077]
[1749479698444,15.05739336,154.69,154.68,10.74]
[1749479698651,15.05739336,154.69,154.64,50.92]
[1749479698846,15.05739336,154.67,154.64,10.68]
[1749479699560,15.05739336,154.66,154.64,10.68]
[1749479699755,15.05739336,154.67,154.64,17.14662354]
[1749479700146,15.05739336,154.67,154.64,10.68]
[1749479700663,6.46462329,154.69,154.65,5.5]
[1749479700870,15.05739336,154.67,154.65,5.5]
[1749479701040,15.05739336,154.66,154.65,5.5]
[1749479701866,15.05739336,154.66,154.62,21.52470026]
[1749479702066,15.05739336,154.66,154.62,6.4673069]
[1749479702264,15.05739336,154.66,154.62,21.52470026]
[1749479703051,15.05739336,154.66,154.62,6.4673069]
[1749479703758,15.05739336,154.66,154.62,21.52470026]
[1749479704065,15.05739336,154.66,154.62,6.4673069]
[1749479704275,15.05739336,154.65,154.62,6.4673069]
[1749479704475,15.05739336,154.66,154.61,58.76497761]
[1749479704770,15.05739336,154.62,154.6,10.68]
[1749479705071,15.05739336,154.61,154.58,6.46903009]
[1749479705262,0.14216157,154.65,154.58,6.46903009]
[1749479705461,15.05739336,154.63,154.58,21.52642345]
[1749479705656,0.14216157,154.65,154.56,91.97739336]
[1749479705657,15.05739336,154.6,154.56,91.97739336]
[1749479705851,15.05739336,154.61,154.56,51.73739336]
[1749479706050,15.05739336,154.6,154.56,10.68]
[1749479706277,15.05739336,154.6,154.56,25.73739336]
[1749479706474,0.14216157,154.65,154.58,15.05739336]
[1749479706706,15.05739336,154.62,154.58,21.52613529]
[1749479706973,15.05739336,154.62,154.58,6.46874193]
[1749479707144,15.05739336,154.59,154.56,10.68]
[1749479707564,15.05739336,154.59,154.56,17.1499665]
[1749479708753,15.05739336,154.6,154.56,17.1499665]
[1749479709049,15.05739336,154.61,154.56,32.20735986]
[1749479710772,8.43697796,154.63,154.56,32.20735986]
[1749479710773,8.29480155,154.63,154.56,32.20735986]
[1749479710985,1.7321,154.67,154.59,15.05739336]
[1749479711281,15.05739336,154.63,154.58,15.05739336]
[1749479711974,15.05739336,154.63,154.6,6.4683053]
[1749479712378,15.05739336,154.63,154.59,6.46861958]
[1749479712750,15.05739336,154.62,154.58,21.52636959]
[1749479713567,15.05739336,154.62,154.58,6.46897623]
[1749479714455,15.05739336,154.61,154.58,6.46897623]
[1749479715171,6.60849356,154.65,154.59,15.05739336]
[1749479715376,15.05739336,154.63,154.58,21.52636959]
[1749479717383,15.05739336,154.63,154.59,15.05739336]